[Event "Early-Titled-Tuesday-Blitz-January-23-2024"]
[Site "Chess.com"]
[Date "2024.01.23"]
[Round "2"]
[White "Giorno"]
[Black "Chempiblinka"]
[Result "1-0"]
[WhiteElo "2534"]
[BlackElo "2318"]
[TimeControl "180+1"]
[EndTime "8:15:53 PST"]
[Termination "Giorno won by resignation"]

1. e4 {[%clk 0:03:00.3]} 1... c5 {[%clk 0:02:53.5]} 2. Be2 {[%clk 0:02:52.8]}
2... g6 {[%clk 0:02:42.3]} 3. f4 {[%clk 0:02:41.7]} 3... Bg7 {[%clk 0:02:41.6]}
4. Nf3 {[%clk 0:02:42.2]} 4... e6 {[%clk 0:02:30.8]} 5. O-O {[%clk 0:02:41.2]}
5... Ne7 {[%clk 0:02:31]} 6. c3 {[%clk 0:02:37.2]} 6... O-O {[%clk 0:02:25.2]}
7. Na3 {[%clk 0:02:36]} 7... Nbc6 {[%clk 0:02:23.8]} 8. Kh1 {[%clk 0:02:31.5]}
8... d5 {[%clk 0:02:24.4]} 9. e5 {[%clk 0:02:31.9]} 9... a6 {[%clk 0:02:22.2]}
10. d4 {[%clk 0:02:32]} 10... c4 {[%clk 0:02:20.5]} 11. Nc2 {[%clk 0:02:30.2]}
11... b5 {[%clk 0:02:20.7]} 12. g4 {[%clk 0:02:22]} 12... a5 {[%clk 0:02:18.2]}
13. Ne3 {[%clk 0:02:14.4]} 13... b4 {[%clk 0:02:18.3]} 14. Qe1 {[%clk
0:02:07.4]} 14... Qb6 {[%clk 0:01:56.9]} 15. Qh4 {[%clk 0:02:04.5]} 15... a4
{[%clk 0:01:41.2]} 16. a3 {[%clk 0:01:42.6]} 16... bxc3 {[%clk 0:01:36]} 17.
bxc3 {[%clk 0:01:43.5]} 17... Na5 {[%clk 0:01:27.8]} 18. Qxe7 {[%clk 0:01:28.8]}
18... Nb3 {[%clk 0:01:20.3]} 19. Rb1 {[%clk 0:01:28.5]} 19... f5 {[%clk
0:01:05.5]} 20. Qh4 {[%clk 0:01:21.6]} 20... fxg4 {[%clk 0:01:04.2]} 21. Nxg4
{[%clk 0:01:20.8]} 21... Rf5 {[%clk 0:01:04.3]} 22. Ng5 {[%clk 0:01:12.5]} 22...
h5 {[%clk 0:00:44.1]} 23. Ne3 {[%clk 0:01:12.6]} 23... Rf8 {[%clk 0:00:38.7]}
24. Bxh5 {[%clk 0:01:12.7]} 24... gxh5 {[%clk 0:00:37.3]} 25. Qxh5 {[%clk
0:01:13.6]} 25... Rd8 {[%clk 0:00:27.1]} 26. Qf7+ {[%clk 0:01:11.5]} 26... Kh8
{[%clk 0:00:27.4]} 27. Rf3 {[%clk 0:01:11.7]} 1-0

[Event "Early-Titled-Tuesday-Blitz-January-23-2024"]
[Site "Chess.com"]
[Date "2024.01.23"]
[Round "2"]
[White "dmosesov"]
[Black "DenLaz"]
[Result "0-1"]
[WhiteElo "2640"]
[BlackElo "3081"]
[TimeControl "180+1"]
[EndTime "8:15:54 PST"]
[Termination "DenLaz won by resignation"]

1. Nf3 {[%clk 0:03:00.9]} 1... d5 {[%clk 0:02:59.7]} 2. c4 {[%clk 0:03:00.8]}
2... e6 {[%clk 0:02:59.3]} 3. g3 {[%clk 0:02:55.2]} 3... Nf6 {[%clk 0:02:59.5]}
4. Bg2 {[%clk 0:01:38.7]} 4... Be7 {[%clk 0:02:58.7]} 5. O-O {[%clk 0:01:37.6]}
5... O-O {[%clk 0:02:59.3]} 6. b3 {[%clk 0:01:34.3]} 6... d4 {[%clk 0:02:59]} 7.
e3 {[%clk 0:01:34.1]} 7... c5 {[%clk 0:02:58.9]} 8. exd4 {[%clk 0:01:34.3]} 8...
cxd4 {[%clk 0:02:59.4]} 9. d3 {[%clk 0:01:33.3]} 9... Nc6 {[%clk 0:02:59.9]} 10.
Re1 {[%clk 0:01:33.4]} 10... Re8 {[%clk 0:02:57.8]} 11. a3 {[%clk 0:01:33]}
11... a5 {[%clk 0:02:57.6]} 12. Ne5 {[%clk 0:01:32.8]} 12... Nxe5 {[%clk
0:02:57.9]} 13. Rxe5 {[%clk 0:01:33.7]} 13... Qc7 {[%clk 0:02:57.8]} 14. Rb5
{[%clk 0:01:25.1]} 14... e5 {[%clk 0:02:52.2]} 15. b4 {[%clk 0:01:09.2]} 15...
axb4 {[%clk 0:02:47.4]} 16. Bb2 {[%clk 0:01:07.6]} 16... bxa3 {[%clk 0:02:13.5]}
17. Nxa3 {[%clk 0:01:08.5]} 17... Ra6 {[%clk 0:02:13.4]} 18. Rb3 {[%clk
0:01:02.7]} 18... b6 {[%clk 0:01:58.8]} 19. Nb5 {[%clk 0:00:41.6]} 19... Rxa1
{[%clk 0:01:57.3]} 20. Qxa1 {[%clk 0:00:40.9]} 20... Qd8 {[%clk 0:01:55.1]} 21.
Qa7 {[%clk 0:00:38.6]} 21... Bc5 {[%clk 0:01:53.5]} 22. Ba3 {[%clk 0:00:31]}
22... e4 {[%clk 0:01:46.8]} 23. Bxc5 {[%clk 0:00:29.1]} 23... bxc5 {[%clk
0:01:46.9]} 24. dxe4 {[%clk 0:00:27.8]} 24... d3 {[%clk 0:01:37.6]} 25. Rb1
{[%clk 0:00:21.5]} 25... Nxe4 {[%clk 0:01:25.9]} 26. Bxe4 {[%clk 0:00:20.2]}
26... Rxe4 {[%clk 0:01:26.8]} 27. Qxc5 {[%clk 0:00:20.2]} 27... d2 {[%clk
0:01:27]} 28. Nc3 {[%clk 0:00:20.2]} 28... Re1+ {[%clk 0:01:26.4]} 0-1

[Event "Early-Titled-Tuesday-Blitz-January-23-2024"]
[Site "Chess.com"]
[Date "2024.01.23"]
[Round "2"]
[White "mishanick"]
[Black "Dacean99"]
[Result "1-0"]
[WhiteElo "3069"]
[BlackElo "2638"]
[TimeControl "180+1"]
[EndTime "8:15:56 PST"]
[Termination "mishanick won by resignation"]

1. d4 {[%clk 0:03:00.9]} 1... d5 {[%clk 0:02:59.3]} 2. c4 {[%clk 0:03:01.4]}
2... dxc4 {[%clk 0:02:59.7]} 3. Nf3 {[%clk 0:03:01]} 3... Nf6 {[%clk 0:03:00.1]}
4. e3 {[%clk 0:03:00.9]} 4... e6 {[%clk 0:03:00.7]} 5. Bxc4 {[%clk 0:03:01.5]}
5... c5 {[%clk 0:02:59.9]} 6. O-O {[%clk 0:03:02.2]} 6... a6 {[%clk 0:02:59.4]}
7. Nc3 {[%clk 0:03:02.8]} 7... b5 {[%clk 0:02:58.6]} 8. Bb3 {[%clk 0:03:03.3]}
8... Bb7 {[%clk 0:02:56.4]} 9. e4 {[%clk 0:03:03.6]} 9... cxd4 {[%clk
0:02:55.9]} 10. Nxd4 {[%clk 0:03:04.5]} 10... Nbd7 {[%clk 0:02:54.7]} 11. Be3
{[%clk 0:03:01.4]} 11... Bc5 {[%clk 0:02:53.5]} 12. Bxe6 {[%clk 0:02:53.1]}
12... O-O {[%clk 0:02:19.8]} 13. Bxd7 {[%clk 0:02:44.7]} 13... Qxd7 {[%clk
0:02:19.4]} 14. f3 {[%clk 0:02:42.9]} 14... Rad8 {[%clk 0:02:17.5]} 15. Nce2
{[%clk 0:02:22.2]} 15... Rfe8 {[%clk 0:02:13.6]} 16. Qb3 {[%clk 0:02:15]} 16...
a5 {[%clk 0:01:42.2]} 17. Rad1 {[%clk 0:02:12.5]} 17... a4 {[%clk 0:01:40.7]}
18. Qc3 {[%clk 0:02:09.4]} 18... Rc8 {[%clk 0:01:25.6]} 19. Ng3 {[%clk 0:01:53]}
19... b4 {[%clk 0:01:21.6]} 20. Qd2 {[%clk 0:01:52.7]} 20... Ba6 {[%clk
0:01:20]} 21. Rfe1 {[%clk 0:01:52.7]} 21... b3 {[%clk 0:01:17.2]} 22. axb3
{[%clk 0:01:51.6]} 22... axb3 {[%clk 0:01:17.1]} 23. Ngf5 {[%clk 0:01:49.3]}
23... Bc4 {[%clk 0:01:13.5]} 24. Qf2 {[%clk 0:01:46.3]} 24... Bb4 {[%clk
0:01:07.8]} 25. Bd2 {[%clk 0:01:41.1]} 25... Bxd2 {[%clk 0:01:05.9]} 26. Rxd2
{[%clk 0:01:40.8]} 26... Qa7 {[%clk 0:00:59.1]} 27. Nxg7 {[%clk 0:01:39.2]}
27... Red8 {[%clk 0:00:55.7]} 28. Ngf5 {[%clk 0:01:39.5]} 28... Kh8 {[%clk
0:00:45.2]} 29. Qg3 {[%clk 0:01:39.6]} 29... Rg8 {[%clk 0:00:36.9]} 30. Qe5
{[%clk 0:01:40]} 30... Rc6 {[%clk 0:00:25.4]} 31. Kh1 {[%clk 0:01:32.4]} 31...
Qb8 {[%clk 0:00:19.8]} 32. Qxb8 {[%clk 0:01:30.2]} 32... Rxb8 {[%clk 0:00:18.7]}
33. Nxc6 {[%clk 0:01:30.8]} 1-0

[Event "Early-Titled-Tuesday-Blitz-January-23-2024"]
[Site "Chess.com"]
[Date "2024.01.23"]
[Round "2"]
[White "jk13"]
[Black "KorolDimitriy75"]
[Result "1-0"]
[WhiteElo "2658"]
[BlackElo "2370"]
[TimeControl "180+1"]
[EndTime "8:16:03 PST"]
[Termination "jk13 won by resignation"]

1. c4 {[%clk 0:03:00.9]} 1... c5 {[%clk 0:03:00]} 2. Nc3 {[%clk 0:02:58.7]} 2...
g6 {[%clk 0:03:00.5]} 3. g3 {[%clk 0:02:59.3]} 3... Bg7 {[%clk 0:03:01]} 4. Bg2
{[%clk 0:03:00]} 4... Nc6 {[%clk 0:03:01.6]} 5. d3 {[%clk 0:03:00.4]} 5... Nh6
{[%clk 0:03:01.9]} 6. h4 {[%clk 0:03:00.2]} 6... Ng4 {[%clk 0:03:01.5]} 7. h5
{[%clk 0:02:59.9]} 7... O-O {[%clk 0:02:46.6]} 8. Nf3 {[%clk 0:02:53.8]} 8... h6
{[%clk 0:02:36.3]} 9. hxg6 {[%clk 0:02:48.5]} 9... fxg6 {[%clk 0:02:37.2]} 10.
Bd2 {[%clk 0:02:37.4]} 10... d6 {[%clk 0:02:36.5]} 11. a3 {[%clk 0:02:24.5]}
11... a6 {[%clk 0:02:16.1]} 12. Qc1 {[%clk 0:02:20.9]} 12... g5 {[%clk
0:01:51.8]} 13. Nd1 {[%clk 0:02:04.8]} 13... e5 {[%clk 0:01:23.8]} 14. Nxg5
{[%clk 0:01:37.4]} 14... hxg5 {[%clk 0:01:19.4]} 15. Bd5+ {[%clk 0:01:37.9]}
15... Rf7 {[%clk 0:01:11]} 16. Bxf7+ {[%clk 0:01:35.2]} 16... Kxf7 {[%clk
0:01:10.7]} 17. Bxg5 {[%clk 0:01:35.1]} 17... Qe8 {[%clk 0:00:38.5]} 18. f3
{[%clk 0:01:26]} 18... Nf6 {[%clk 0:00:38]} 19. Bxf6 {[%clk 0:01:24]} 19... Kxf6
{[%clk 0:00:35.5]} 20. Nc3 {[%clk 0:01:19.8]} 20... Nd4 {[%clk 0:00:32.1]} 21.
Ne4+ {[%clk 0:00:50.7]} 21... Kf7 {[%clk 0:00:29.5]} 22. Nxd6+ {[%clk
0:00:48.9]} 1-0

[Event "Early-Titled-Tuesday-Blitz-January-23-2024"]
[Site "Chess.com"]
[Date "2024.01.23"]
[Round "2"]
[White "DarkAlekhine"]
[Black "medalja"]
[Result "1-0"]
[WhiteElo "2713"]
[BlackElo "2385"]
[TimeControl "180+1"]
[EndTime "8:16:08 PST"]
[Termination "DarkAlekhine won by resignation"]

1. e4 {[%clk 0:03:00.9]} 1... d5 {[%clk 0:02:57.8]} 2. exd5 {[%clk 0:03:00.6]}
2... Qxd5 {[%clk 0:02:57.1]} 3. Nc3 {[%clk 0:03:01.3]} 3... Qd6 {[%clk
0:02:56.9]} 4. d4 {[%clk 0:02:58.8]} 4... c6 {[%clk 0:02:57]} 5. Nf3 {[%clk
0:02:58.7]} 5... g6 {[%clk 0:02:56.2]} 6. g3 {[%clk 0:02:55.3]} 6... Bg7 {[%clk
0:02:56.4]} 7. Bf4 {[%clk 0:02:53.4]} 7... Qb4 {[%clk 0:02:52.9]} 8. Qd2 {[%clk
0:02:53.3]} 8... Bf5 {[%clk 0:02:45.3]} 9. O-O-O {[%clk 0:02:47.7]} 9... e6
{[%clk 0:02:05.8]} 10. a3 {[%clk 0:02:42.6]} 10... Qa5 {[%clk 0:01:59.8]} 11. h3
{[%clk 0:02:38.2]} 11... h5 {[%clk 0:01:52.3]} 12. Bc4 {[%clk 0:02:35.2]} 12...
Ne7 {[%clk 0:01:49.9]} 13. Ne5 {[%clk 0:02:32.6]} 13... b5 {[%clk 0:01:31.7]}
14. Bb3 {[%clk 0:02:32.7]} 14... f6 {[%clk 0:00:54.5]} 15. Nd3 {[%clk
0:02:26.5]} 15... g5 {[%clk 0:00:52.7]} 16. Bd6 {[%clk 0:02:25.4]} 16... Qd8
{[%clk 0:00:49.1]} 17. Bxe7 {[%clk 0:02:11.2]} 17... Qxe7 {[%clk 0:00:48.5]} 18.
Nc5 {[%clk 0:02:11.3]} 18... Nd7 {[%clk 0:00:47.2]} 19. Nxe6 {[%clk 0:02:08.6]}
19... Bxe6 {[%clk 0:00:44.2]} 20. Bxe6 {[%clk 0:02:09.5]} 20... Qxe6 {[%clk
0:00:38.6]} 21. Rhe1 {[%clk 0:02:09.3]} 21... Ne5 {[%clk 0:00:38.9]} 22. dxe5
{[%clk 0:02:10.2]} 22... O-O {[%clk 0:00:37.7]} 23. Qd6 {[%clk 0:02:03]} 23...
Rae8 {[%clk 0:00:27.2]} 24. Qxe6+ {[%clk 0:01:47.8]} 24... Rxe6 {[%clk
0:00:28.1]} 25. exf6 {[%clk 0:01:47.7]} 25... Rfxf6 {[%clk 0:00:28]} 26. Ne4
{[%clk 0:01:44.3]} 26... Rg6 {[%clk 0:00:21.7]} 27. Rd8+ {[%clk 0:01:43.4]}
27... Bf8 {[%clk 0:00:18.3]} 28. g4 {[%clk 0:01:43.3]} 28... hxg4 {[%clk
0:00:17]} 29. hxg4 {[%clk 0:01:44.2]} 29... c5 {[%clk 0:00:14]} 30. f3 {[%clk
0:01:44.3]} 30... c4 {[%clk 0:00:13.3]} 31. Red1 {[%clk 0:01:44]} 31... Kf7
{[%clk 0:00:13.4]} 32. R1d5 {[%clk 0:01:43.9]} 32... Re8 {[%clk 0:00:09]} 33.
Rf5+ {[%clk 0:01:40.1]} 33... Kg8 {[%clk 0:00:06.5]} 34. Rxe8 {[%clk 0:01:40.2]}
1-0

[Event "Early-Titled-Tuesday-Blitz-January-23-2024"]
[Site "Chess.com"]
[Date "2024.01.23"]
[Round "2"]
[White "stratacticos"]
[Black "s4p0ud"]
[Result "0-1"]
[WhiteElo "2018"]
[BlackElo "2448"]
[TimeControl "180+1"]
[EndTime "8:16:10 PST"]
[Termination "s4p0ud won by resignation"]

1. e4 {[%clk 0:03:00]} 1... c5 {[%clk 0:02:59.6]} 2. Nf3 {[%clk 0:02:56.1]} 2...
g6 {[%clk 0:02:59.4]} 3. c3 {[%clk 0:02:55.2]} 3... d5 {[%clk 0:02:54.3]} 4.
exd5 {[%clk 0:02:54.4]} 4... Qxd5 {[%clk 0:02:55.2]} 5. Na3 {[%clk 0:02:53.4]}
5... Bg7 {[%clk 0:02:34.7]} 6. Be2 {[%clk 0:02:51.2]} 6... Nf6 {[%clk
0:02:29.5]} 7. O-O {[%clk 0:02:48.5]} 7... O-O {[%clk 0:02:22.5]} 8. d4 {[%clk
0:02:47.8]} 8... cxd4 {[%clk 0:02:20]} 9. Nb5 {[%clk 0:02:46.5]} 9... Na6 {[%clk
0:02:13.4]} 10. cxd4 {[%clk 0:02:35.2]} 10... Bg4 {[%clk 0:01:56.8]} 11. Nc3
{[%clk 0:02:32.7]} 11... Qd6 {[%clk 0:01:51.6]} 12. h3 {[%clk 0:02:28.5]} 12...
Bf5 {[%clk 0:01:47]} 13. Bg5 {[%clk 0:02:17.4]} 13... Nb4 {[%clk 0:01:37.1]} 14.
Qd2 {[%clk 0:02:12.9]} 14... Nbd5 {[%clk 0:01:33.6]} 15. Rad1 {[%clk 0:02:05.4]}
15... Rac8 {[%clk 0:01:29]} 16. Rfe1 {[%clk 0:01:48]} 16... Nxc3 {[%clk
0:01:24.6]} 17. bxc3 {[%clk 0:01:47.4]} 17... Ne4 {[%clk 0:01:24.2]} 18. Qe3
{[%clk 0:01:30.3]} 18... Rxc3 {[%clk 0:01:06.4]} 19. Rd3 {[%clk 0:00:51.6]}
19... Rxd3 {[%clk 0:00:38.5]} 20. Bxd3 {[%clk 0:00:50.6]} 20... Nxg5 {[%clk
0:00:37.9]} 21. Nxg5 {[%clk 0:00:47.5]} 21... Bxd4 {[%clk 0:00:38]} 22. Qf3
{[%clk 0:00:39.6]} 22... Bxd3 {[%clk 0:00:37.3]} 23. Qxd3 {[%clk 0:00:38.8]}
23... Bxf2+ {[%clk 0:00:37.5]} 0-1

[Event "Early-Titled-Tuesday-Blitz-January-23-2024"]
[Site "Chess.com"]
[Date "2024.01.23"]
[Round "2"]
[White "sergoy"]
[Black "SmirnovAlexandrA"]
[Result "1-0"]
[WhiteElo "3019"]
[BlackElo "2628"]
[TimeControl "180+1"]
[EndTime "8:16:12 PST"]
[Termination "sergoy won by resignation"]

1. d4 {[%clk 0:03:00.9]} 1... Nf6 {[%clk 0:02:58.4]} 2. c4 {[%clk 0:03:01.4]}
2... g6 {[%clk 0:02:58.3]} 3. Nc3 {[%clk 0:03:01.2]} 3... Bg7 {[%clk 0:02:58.4]}
4. e4 {[%clk 0:03:01.9]} 4... d6 {[%clk 0:02:59.3]} 5. Nf3 {[%clk 0:03:02.5]}
5... O-O {[%clk 0:02:59.5]} 6. Be2 {[%clk 0:03:03.2]} 6... c5 {[%clk 0:03:00.1]}
7. d5 {[%clk 0:03:01.2]} 7... e6 {[%clk 0:02:57]} 8. O-O {[%clk 0:03:00.9]} 8...
exd5 {[%clk 0:02:57.1]} 9. cxd5 {[%clk 0:03:01.5]} 9... Re8 {[%clk 0:02:57.6]}
10. Nd2 {[%clk 0:03:01.9]} 10... a6 {[%clk 0:02:56.3]} 11. a4 {[%clk 0:03:02]}
11... Nbd7 {[%clk 0:02:56]} 12. h3 {[%clk 0:03:00.7]} 12... Qc7 {[%clk 0:02:54]}
13. Re1 {[%clk 0:02:47.5]} 13... b6 {[%clk 0:02:50.3]} 14. Bf1 {[%clk 0:02:42]}
14... Bb7 {[%clk 0:02:49.6]} 15. Nc4 {[%clk 0:02:40.8]} 15... Ne5 {[%clk
0:02:46.2]} 16. Nxe5 {[%clk 0:02:35]} 16... Rxe5 {[%clk 0:02:47.1]} 17. Bf4
{[%clk 0:02:35.5]} 17... Re7 {[%clk 0:02:42.8]} 18. e5 {[%clk 0:02:24.5]} 18...
Rxe5 {[%clk 0:01:56.9]} 19. Bxe5 {[%clk 0:02:13.3]} 19... dxe5 {[%clk
0:01:57.8]} 20. Rc1 {[%clk 0:02:07.5]} 20... Rd8 {[%clk 0:01:48.7]} 21. Bc4
{[%clk 0:02:07.2]} 21... Ne8 {[%clk 0:01:44.6]} 22. Ne4 {[%clk 0:02:05.9]} 22...
h6 {[%clk 0:01:36.4]} 23. Ba2 {[%clk 0:01:55.6]} 23... Qb8 {[%clk 0:01:18.3]}
24. Qf3 {[%clk 0:01:50]} 24... f5 {[%clk 0:01:12.3]} 25. Ng3 {[%clk 0:01:40.7]}
25... e4 {[%clk 0:01:03.9]} 26. Qe2 {[%clk 0:01:38.7]} 26... Kh7 {[%clk
0:00:52.1]} 27. h4 {[%clk 0:01:36.9]} 27... h5 {[%clk 0:00:51.1]} 28. Nxh5
{[%clk 0:01:30.8]} 28... gxh5 {[%clk 0:00:44.5]} 29. Qxh5+ {[%clk 0:01:30.7]}
29... Bh6 {[%clk 0:00:43.4]} 30. Qxf5+ {[%clk 0:01:30.7]} 30... Kh8 {[%clk
0:00:41.6]} 31. Rxe4 {[%clk 0:01:27.7]} 31... Nd6 {[%clk 0:00:23]} 32. Qh5
{[%clk 0:01:26.5]} 32... Kh7 {[%clk 0:00:15.6]} 33. Re6 {[%clk 0:01:24.2]} 1-0

[Event "Early-Titled-Tuesday-Blitz-January-23-2024"]
[Site "Chess.com"]
[Date "2024.01.23"]
[Round "2"]
[White "NovakRatko"]
[Black "Djager97"]
[Result "1/2-1/2"]
[WhiteElo "2353"]
[BlackElo "2585"]
[TimeControl "180+1"]
[EndTime "8:16:13 PST"]
[Termination "Game drawn by repetition"]

1. d4 {[%clk 0:02:54.4]} 1... d5 {[%clk 0:02:58.8]} 2. c4 {[%clk 0:02:54.9]}
2... e6 {[%clk 0:02:58.4]} 3. cxd5 {[%clk 0:02:55.2]} 3... exd5 {[%clk
0:02:57.5]} 4. Nc3 {[%clk 0:02:56.1]} 4... Nf6 {[%clk 0:02:57]} 5. Bg5 {[%clk
0:02:56.1]} 5... Be7 {[%clk 0:02:54.1]} 6. f3 {[%clk 0:02:56.2]} 6... O-O {[%clk
0:02:52.1]} 7. e3 {[%clk 0:02:56.2]} 7... c5 {[%clk 0:02:39.4]} 8. Bd3 {[%clk
0:02:53.4]} 8... Nc6 {[%clk 0:02:37.9]} 9. Nge2 {[%clk 0:02:53.5]} 9... h6
{[%clk 0:02:35.9]} 10. Bh4 {[%clk 0:02:53.6]} 10... c4 {[%clk 0:02:29.5]} 11.
Bc2 {[%clk 0:02:53.1]} 11... b5 {[%clk 0:02:30.1]} 12. a3 {[%clk 0:02:52.9]}
12... b4 {[%clk 0:02:23.3]} 13. axb4 {[%clk 0:02:52.7]} 13... Nxb4 {[%clk
0:02:24.2]} 14. O-O {[%clk 0:02:52.7]} 14... Nxc2 {[%clk 0:02:13.9]} 15. Qxc2
{[%clk 0:02:51.8]} 15... Re8 {[%clk 0:02:12.6]} 16. Bf2 {[%clk 0:02:51.1]} 16...
Bf8 {[%clk 0:02:03.3]} 17. h3 {[%clk 0:02:47.5]} 17... Qb6 {[%clk 0:01:54.2]}
18. e4 {[%clk 0:02:46.2]} 18... dxe4 {[%clk 0:01:36.9]} 19. fxe4 {[%clk
0:02:45.8]} 19... Rb8 {[%clk 0:01:35.3]} 20. e5 {[%clk 0:02:37.6]} 20... Nh7
{[%clk 0:01:23.3]} 21. Rfb1 {[%clk 0:02:36]} 21... Ng5 {[%clk 0:01:10.3]} 22. d5
{[%clk 0:02:35.3]} 22... Bc5 {[%clk 0:01:10.7]} 23. Bxc5 {[%clk 0:02:24.8]}
23... Qxc5+ {[%clk 0:01:11.6]} 24. Kh1 {[%clk 0:02:18.2]} 24... Rxe5 {[%clk
0:01:08.6]} 25. Qa4 {[%clk 0:02:18.7]} 25... Bf5 {[%clk 0:00:55.2]} 26. Rf1
{[%clk 0:02:17]} 26... Rxb2 {[%clk 0:00:44.5]} 27. Qxa7 {[%clk 0:02:14.8]} 27...
Qxa7 {[%clk 0:00:45.4]} 28. Rxa7 {[%clk 0:02:13.4]} 28... Bd3 {[%clk 0:00:46.3]}
29. h4 {[%clk 0:02:04.4]} 29... Ne4 {[%clk 0:00:23]} 30. Rfxf7 {[%clk
0:01:43.9]} 30... Bxe2 {[%clk 0:00:22.8]} 31. Rxg7+ {[%clk 0:01:42.7]} 31... Kh8
{[%clk 0:00:22.4]} 32. Rh7+ {[%clk 0:01:41.8]} 32... Kg8 {[%clk 0:00:22.8]} 33.
Rag7+ {[%clk 0:01:41.8]} 33... Kf8 {[%clk 0:00:23]} 34. Ra7 {[%clk 0:01:30]}
34... Kg8 {[%clk 0:00:12.1]} 35. Rag7+ {[%clk 0:01:29.5]} 35... Kf8 {[%clk
0:00:12.3]} 36. Ra7 {[%clk 0:01:30.2]} 36... Kg8 {[%clk 0:00:07.6]} 1/2-1/2

[Event "Early-Titled-Tuesday-Blitz-January-23-2024"]
[Site "Chess.com"]
[Date "2024.01.23"]
[Round "2"]
[White "hakanazeri2"]
[Black "snowlord"]
[Result "0-1"]
[WhiteElo "2576"]
[BlackElo "2869"]
[TimeControl "180+1"]
[EndTime "8:16:14 PST"]
[Termination "snowlord won on time"]

1. Nf3 {[%clk 0:02:57.9]} 1... Nc6 {[%clk 0:02:58.9]} 2. c4 {[%clk 0:02:58.8]}
2... e5 {[%clk 0:02:56.6]} 3. Nc3 {[%clk 0:02:58.8]} 3... Bb4 {[%clk 0:02:56.1]}
4. Qc2 {[%clk 0:02:57.2]} 4... b6 {[%clk 0:02:51.6]} 5. Nd5 {[%clk 0:02:55.6]}
5... Bb7 {[%clk 0:02:46.7]} 6. Nxb4 {[%clk 0:02:45.5]} 6... Nxb4 {[%clk
0:02:46.5]} 7. Qc3 {[%clk 0:02:45.6]} 7... a5 {[%clk 0:02:46.4]} 8. Qxe5+ {[%clk
0:02:35.7]} 8... Kf8 {[%clk 0:02:45.7]} 9. Qc3 {[%clk 0:02:32.1]} 9... Qf6
{[%clk 0:02:45.4]} 10. Kd1 {[%clk 0:01:55.9]} 10... Qg6 {[%clk 0:02:33.5]} 11.
a3 {[%clk 0:01:37.6]} 11... Bxf3 {[%clk 0:02:20.6]} 12. gxf3 {[%clk 0:01:13.7]}
12... Nc6 {[%clk 0:02:20.5]} 13. d4 {[%clk 0:01:07.8]} 13... Nf6 {[%clk
0:02:08.3]} 14. d5 {[%clk 0:01:02.5]} 14... Ne7 {[%clk 0:02:08.2]} 15. e4 {[%clk
0:01:00.6]} 15... Qh5 {[%clk 0:02:05.3]} 16. Be2 {[%clk 0:00:53.1]} 16... Qh4
{[%clk 0:02:02.7]} 17. Be3 {[%clk 0:00:38.8]} 17... Ng6 {[%clk 0:01:59.9]} 18.
Kc2 {[%clk 0:00:26.6]} 18... d6 {[%clk 0:01:52.4]} 19. Rag1 {[%clk 0:00:23.7]}
19... a4 {[%clk 0:01:51.4]} 20. Rg3 {[%clk 0:00:21.8]} 20... Nxe4 {[%clk
0:01:51]} 21. fxe4 {[%clk 0:00:05]} 21... Qxe4+ {[%clk 0:01:50.5]} 22. Bd3
{[%clk 0:00:04.8]} 22... Qxh1 {[%clk 0:01:50.5]} 23. Bd4 {[%clk 0:00:04.8]}
23... Rg8 {[%clk 0:01:45]} 24. Bxg6 {[%clk 0:00:04]} 24... hxg6 {[%clk
0:01:44.8]} 25. Rf3 {[%clk 0:00:03.8]} 25... Re8 {[%clk 0:01:39.8]} 26. Qd3
{[%clk 0:00:01.5]} 26... Qg2 {[%clk 0:01:19.1]} 27. Be3 {[%clk 0:00:01.5]} 27...
Qxf3 {[%clk 0:01:17.9]} 0-1

[Event "Early-Titled-Tuesday-Blitz-January-23-2024"]
[Site "Chess.com"]
[Date "2024.01.23"]
[Round "2"]
[White "inneremptiness"]
[Black "Let_it_be_1"]
[Result "1-0"]
[WhiteElo "2891"]
[BlackElo "2588"]
[TimeControl "180+1"]
[EndTime "8:16:16 PST"]
[Termination "inneremptiness won by checkmate"]

1. Nf3 {[%clk 0:02:58.1]} 1... d5 {[%clk 0:03:00.1]} 2. d4 {[%clk 0:02:57.4]}
2... e6 {[%clk 0:03:00.2]} 3. c4 {[%clk 0:02:57.4]} 3... Nf6 {[%clk 0:03:00.1]}
4. Nc3 {[%clk 0:02:57.1]} 4... Be7 {[%clk 0:03:00.4]} 5. Bf4 {[%clk 0:02:56.4]}
5... O-O {[%clk 0:03:00.3]} 6. a3 {[%clk 0:02:56.4]} 6... Nbd7 {[%clk
0:03:00.2]} 7. Nb5 {[%clk 0:02:55.8]} 7... Ne8 {[%clk 0:02:59.4]} 8. e3 {[%clk
0:02:53.5]} 8... a6 {[%clk 0:02:56.2]} 9. Nc3 {[%clk 0:02:54]} 9... Nef6 {[%clk
0:02:56]} 10. Bd3 {[%clk 0:02:47.4]} 10... dxc4 {[%clk 0:02:55.2]} 11. Bxc4
{[%clk 0:02:48.3]} 11... b5 {[%clk 0:02:55.3]} 12. Bd3 {[%clk 0:02:47.7]} 12...
Bb7 {[%clk 0:02:54.1]} 13. O-O {[%clk 0:02:48.2]} 13... c5 {[%clk 0:02:54]} 14.
Rc1 {[%clk 0:02:46]} 14... Rc8 {[%clk 0:02:53.5]} 15. Bb1 {[%clk 0:02:44.8]}
15... Qb6 {[%clk 0:02:48.9]} 16. Qe2 {[%clk 0:02:37]} 16... Rfd8 {[%clk
0:02:42]} 17. Rfd1 {[%clk 0:02:36.9]} 17... cxd4 {[%clk 0:02:37]} 18. exd4
{[%clk 0:02:36.3]} 18... Nd5 {[%clk 0:02:23.1]} 19. Nxd5 {[%clk 0:02:34.7]}
19... Bxd5 {[%clk 0:02:23.3]} 20. Ne5 {[%clk 0:02:35]} 20... Nf6 {[%clk
0:02:22.7]} 21. Be3 {[%clk 0:01:56.8]} 21... Qb7 {[%clk 0:02:05.5]} 22. f3
{[%clk 0:01:55.9]} 22... Rxc1 {[%clk 0:02:04.2]} 23. Rxc1 {[%clk 0:01:55.8]}
23... Rc8 {[%clk 0:02:05.1]} 24. Re1 {[%clk 0:01:51.7]} 24... b4 {[%clk
0:01:52.1]} 25. axb4 {[%clk 0:01:41.9]} 25... Bxb4 {[%clk 0:01:50.6]} 26. Rc1
{[%clk 0:01:36.5]} 26... Rxc1+ {[%clk 0:01:47.1]} 27. Bxc1 {[%clk 0:01:37.4]}
27... Qc7 {[%clk 0:01:37.6]} 28. Be3 {[%clk 0:01:35.7]} 28... Bb7 {[%clk
0:01:36]} 29. Qd3 {[%clk 0:01:33.7]} 29... g6 {[%clk 0:01:35.3]} 30. h4 {[%clk
0:01:17.2]} 30... Nd5 {[%clk 0:01:31.8]} 31. Bh6 {[%clk 0:01:17.2]} 31... Bd6
{[%clk 0:01:26.4]} 32. Qe2 {[%clk 0:01:05.7]} 32... Ne7 {[%clk 0:01:16.1]} 33.
Ng4 {[%clk 0:01:02]} 33... Bf4 {[%clk 0:01:04.3]} 34. Bxf4 {[%clk 0:00:59.8]}
34... Qxf4 {[%clk 0:01:03.6]} 35. Qe5 {[%clk 0:01:00.4]} 35... Qc1+ {[%clk
0:00:57.2]} 36. Kh2 {[%clk 0:01:00.2]} 36... Qxb1 {[%clk 0:00:55.6]} 37. Nh6+
{[%clk 0:00:59.2]} 37... Kf8 {[%clk 0:00:53.3]} 38. Qh8+ {[%clk 0:00:59.8]}
38... Ng8 {[%clk 0:00:53.6]} 39. Qxg8+ {[%clk 0:01:00.5]} 39... Ke7 {[%clk
0:00:50.1]} 40. Qxf7+ {[%clk 0:01:00.9]} 40... Kd6 {[%clk 0:00:50.2]} 41. Qxb7
{[%clk 0:01:01.6]} 41... Qc1 {[%clk 0:00:49.3]} 42. Nf7# {[%clk 0:00:58.4]} 1-0